[Event "Late-Titled-Tuesday-Blitz-October-10-2023"]
[Site "Chess.com"]
[Date "2023.10.10"]
[Round "11"]
[White "filipluczak05"]
[Black "jcibarra"]
[Result "0-1"]
[WhiteElo "2624"]
[BlackElo "2872"]
[TimeControl "180+1"]
[EndTime "16:00:29 PDT"]
[Termination "jcibarra won by resignation"]

1. d4 {[%clk 0:03:00.9]} 1... Nf6 {[%clk 0:02:57.3]} 2. Nc3 {[%clk 0:02:54.4]}
2... d5 {[%clk 0:02:52.6]} 3. Bf4 {[%clk 0:02:52.5]} 3... c5 {[%clk 0:02:50.4]}
4. e3 {[%clk 0:02:51.1]} 4... cxd4 {[%clk 0:02:50]} 5. exd4 {[%clk 0:02:52]}
5... Bg4 {[%clk 0:02:49.2]} 6. f3 {[%clk 0:02:50.2]} 6... Bd7 {[%clk 0:02:47.1]}
7. Qd2 {[%clk 0:02:33.5]} 7... Nc6 {[%clk 0:02:43.5]} 8. Nge2 {[%clk 0:02:29.5]}
8... Rc8 {[%clk 0:02:40.5]} 9. a3 {[%clk 0:02:28.1]} 9... e6 {[%clk 0:02:38]}
10. h4 {[%clk 0:02:27.2]} 10... Na5 {[%clk 0:02:24.2]} 11. b3 {[%clk 0:02:25.2]}
11... h5 {[%clk 0:02:18.7]} 12. g3 {[%clk 0:02:20.1]} 12... b5 {[%clk
0:02:05.6]} 13. Kf2 {[%clk 0:02:15.2]} 13... Qb6 {[%clk 0:02:04.2]} 14. Kg2
{[%clk 0:01:44.8]} 14... b4 {[%clk 0:01:58.9]} 15. Nb1 {[%clk 0:01:26.6]} 15...
Be7 {[%clk 0:01:46.8]} 16. axb4 {[%clk 0:01:22.7]} 16... Bxb4 {[%clk 0:01:46.2]}
17. Qd1 {[%clk 0:01:22.5]} 17... O-O {[%clk 0:01:40.9]} 18. c3 {[%clk
0:01:20.6]} 18... Be7 {[%clk 0:01:38.4]} 19. b4 {[%clk 0:01:20]} 19... Nc4
{[%clk 0:01:37.4]} 20. Nd2 {[%clk 0:01:12.8]} 20... Bb5 {[%clk 0:01:31.9]} 21.
Nxc4 {[%clk 0:01:11.8]} 21... Bxc4 {[%clk 0:01:31.9]} 22. Qd2 {[%clk 0:01:10.3]}
22... Rc6 {[%clk 0:01:24.6]} 23. Kh3 {[%clk 0:01:07]} 23... Rfc8 {[%clk
0:01:23.4]} 24. Ra3 {[%clk 0:01:04.8]} 24... Bb5 {[%clk 0:01:17.7]} 25. g4
{[%clk 0:01:01.9]} 25... hxg4+ {[%clk 0:01:14.8]} 26. fxg4 {[%clk 0:00:59]}
26... Ne4 {[%clk 0:01:12.8]} 27. Qe3 {[%clk 0:00:50.8]} 27... Bxe2 {[%clk
0:01:10.1]} 28. Qxe2 {[%clk 0:00:49.1]} 28... Rxc3+ {[%clk 0:01:07.8]} 29. Rxc3
{[%clk 0:00:47.7]} 29... Rxc3+ {[%clk 0:01:08.4]} 30. Kh2 {[%clk 0:00:48.1]}
30... Bxh4 {[%clk 0:00:56.6]} 31. Kg2 {[%clk 0:00:36]} 31... Bg3 {[%clk
0:00:48.7]} 32. Be3 {[%clk 0:00:33.1]} 32... Qc7 {[%clk 0:00:42.7]} 33. g5
{[%clk 0:00:31.1]} 33... Rc2 {[%clk 0:00:40]} 34. g6 {[%clk 0:00:20.2]} 34...
Rxe2+ {[%clk 0:00:37.8]} 35. Bxe2 {[%clk 0:00:21.1]} 35... fxg6 {[%clk
0:00:31.3]} 36. Bg4 {[%clk 0:00:21.1]} 36... Qc2+ {[%clk 0:00:30.4]} 37. Kf3
{[%clk 0:00:21.4]} 37... Kf7 {[%clk 0:00:27.8]} 38. Ra1 {[%clk 0:00:21.5]} 38...
Bb8 {[%clk 0:00:23]} 39. Ra6 {[%clk 0:00:21.2]} 39... Nd6 {[%clk 0:00:21.1]} 40.
Ra1 {[%clk 0:00:17.6]} 40... Qe4+ {[%clk 0:00:18.1]} 0-1

[Event "Late-Titled-Tuesday-Blitz-October-10-2023"]
[Site "Chess.com"]
[Date "2023.10.10"]
[Round "11"]
[White "NateSolon"]
[Black "ameetghasi100"]
[Result "0-1"]
[WhiteElo "2589"]
[BlackElo "2734"]
[TimeControl "180+1"]
[EndTime "16:00:29 PDT"]
[Termination "ameetghasi100 won by resignation"]

1. d4 {[%clk 0:03:00.9]} 1... g6 {[%clk 0:02:58.4]} 2. e4 {[%clk 0:02:57.9]}
2... d6 {[%clk 0:02:59.3]} 3. Nf3 {[%clk 0:02:57.6]} 3... Bg7 {[%clk 0:02:59.7]}
4. Bc4 {[%clk 0:02:57.5]} 4... Nf6 {[%clk 0:03:00.1]} 5. Qe2 {[%clk 0:02:57.8]}
5... O-O {[%clk 0:03:00.1]} 6. O-O {[%clk 0:02:57.8]} 6... Nc6 {[%clk
0:02:59.8]} 7. e5 {[%clk 0:02:57.3]} 7... Ne8 {[%clk 0:02:58.6]} 8. h3 {[%clk
0:02:53]} 8... a6 {[%clk 0:02:56.5]} 9. a4 {[%clk 0:02:51.4]} 9... dxe5 {[%clk
0:02:30]} 10. dxe5 {[%clk 0:02:51.7]} 10... Nd4 {[%clk 0:02:30.4]} 11. Nxd4
{[%clk 0:02:47.3]} 11... Qxd4 {[%clk 0:02:31.3]} 12. e6 {[%clk 0:02:38.8]} 12...
f5 {[%clk 0:02:26.5]} 13. Nd2 {[%clk 0:02:27.9]} 13... Nd6 {[%clk 0:02:21.5]}
14. Bb3 {[%clk 0:02:27.6]} 14... b6 {[%clk 0:01:57.9]} 15. Nf3 {[%clk
0:02:26.3]} 15... Qc5 {[%clk 0:01:32.9]} 16. Be3 {[%clk 0:02:09.8]} 16... Qb4
{[%clk 0:01:31.2]} 17. Bd2 {[%clk 0:01:36.1]} 17... Qe4 {[%clk 0:01:30.2]} 18.
Qxe4 {[%clk 0:01:26.3]} 18... fxe4 {[%clk 0:01:24.9]} 19. Ng5 {[%clk 0:01:26.4]}
19... Bxb2 {[%clk 0:01:18.2]} 20. Rab1 {[%clk 0:01:26.6]} 20... Bd4 {[%clk
0:01:17.7]} 21. Bd5 {[%clk 0:00:49.8]} 21... Rb8 {[%clk 0:01:13.7]} 22. Rbe1
{[%clk 0:00:47.7]} 22... Rf5 {[%clk 0:01:01.7]} 23. Bxe4 {[%clk 0:00:40.1]}
23... Nxe4 {[%clk 0:01:00.9]} 24. Rxe4 {[%clk 0:00:41]} 24... Bf6 {[%clk
0:01:01.3]} 25. h4 {[%clk 0:00:37.5]} 25... Bb7 {[%clk 0:00:54.7]} 26. Rc4
{[%clk 0:00:37.6]} 26... c5 {[%clk 0:00:50.8]} 27. Be3 {[%clk 0:00:37.8]} 27...
Bd5 {[%clk 0:00:50.4]} 28. Rf4 {[%clk 0:00:35.2]} 28... Rc8 {[%clk 0:00:39.3]}
29. Rxf5 {[%clk 0:00:32.3]} 29... gxf5 {[%clk 0:00:40.2]} 30. Rb1 {[%clk
0:00:32.5]} 30... Rc6 {[%clk 0:00:32.1]} 31. f3 {[%clk 0:00:17.4]} 31... Bxe6
{[%clk 0:00:29.5]} 32. a5 {[%clk 0:00:12.5]} 32... bxa5 {[%clk 0:00:29.6]} 33.
Nxe6 {[%clk 0:00:12.1]} 33... Rxe6 {[%clk 0:00:29.8]} 34. Bxc5 {[%clk
0:00:12.5]} 34... Rc6 {[%clk 0:00:30.3]} 35. Be3 {[%clk 0:00:07.7]} 35... Rxc2
{[%clk 0:00:29.3]} 36. Rb6 {[%clk 0:00:08.6]} 36... Re2 {[%clk 0:00:24.2]} 37.
Bf4 {[%clk 0:00:07.9]} 37... Bd4+ {[%clk 0:00:24]} 0-1

[Event "Late-Titled-Tuesday-Blitz-October-10-2023"]
[Site "Chess.com"]
[Date "2023.10.10"]
[Round "11"]
[White "UK_23"]
[Black "Zq1"]
[Result "1-0"]
[WhiteElo "2421"]
[BlackElo "2545"]
[TimeControl "180+1"]
[EndTime "16:00:30 PDT"]
[Termination "UK_23 won by resignation"]

1. e4 {[%clk 0:03:00.9]} 1... c5 {[%clk 0:02:59.1]} 2. Nf3 {[%clk 0:03:01.3]}
2... d6 {[%clk 0:02:59.2]} 3. Bb5+ {[%clk 0:03:01.5]} 3... Bd7 {[%clk
0:02:58.7]} 4. Bxd7+ {[%clk 0:03:00.6]} 4... Qxd7 {[%clk 0:02:59]} 5. c4 {[%clk
0:03:01.2]} 5... Nc6 {[%clk 0:02:58.6]} 6. O-O {[%clk 0:03:00.6]} 6... Nf6
{[%clk 0:02:58.6]} 7. Nc3 {[%clk 0:03:00.6]} 7... e6 {[%clk 0:02:58.6]} 8. d4
{[%clk 0:02:59.7]} 8... cxd4 {[%clk 0:02:58.5]} 9. Nxd4 {[%clk 0:03:00.6]} 9...
Be7 {[%clk 0:02:58.5]} 10. b3 {[%clk 0:03:00]} 10... O-O {[%clk 0:02:57.9]} 11.
Bb2 {[%clk 0:03:00.6]} 11... Rfd8 {[%clk 0:02:55.6]} 12. Rc1 {[%clk 0:02:59.9]}
12... Nxd4 {[%clk 0:02:48.5]} 13. Qxd4 {[%clk 0:02:59.7]} 13... b6 {[%clk
0:02:48.8]} 14. Qd3 {[%clk 0:02:58.3]} 14... Qb7 {[%clk 0:02:48.1]} 15. f4
{[%clk 0:02:56.6]} 15... a6 {[%clk 0:02:43.8]} 16. f5 {[%clk 0:02:52.4]} 16...
b5 {[%clk 0:02:40.8]} 17. fxe6 {[%clk 0:02:49.3]} 17... fxe6 {[%clk 0:02:39.9]}
18. Qh3 {[%clk 0:02:24.3]} 18... Qd7 {[%clk 0:02:34.2]} 19. Rcd1 {[%clk
0:01:56.3]} 19... bxc4 {[%clk 0:02:12]} 20. bxc4 {[%clk 0:01:48.9]} 20... e5
{[%clk 0:02:09.5]} 21. Qxd7 {[%clk 0:01:48]} 21... Rxd7 {[%clk 0:02:08]} 22. Nd5
{[%clk 0:01:48.6]} 22... Nxd5 {[%clk 0:01:59.8]} 23. cxd5 {[%clk 0:01:49.5]}
23... Rb7 {[%clk 0:01:56.5]} 24. Ba3 {[%clk 0:01:47.6]} 24... Rc8 {[%clk
0:01:48.7]} 25. Rc1 {[%clk 0:01:44.5]} 25... Rxc1 {[%clk 0:01:47.8]} 26. Rxc1
{[%clk 0:01:45.4]} 26... Rb5 {[%clk 0:01:40.1]} 27. Rc6 {[%clk 0:01:40.1]} 27...
Bg5 {[%clk 0:01:27.4]} 28. Bxd6 {[%clk 0:01:29.8]} 28... Rb2 {[%clk 0:01:06.7]}
29. Rxa6 {[%clk 0:01:22.8]} 29... Be3+ {[%clk 0:01:03.5]} 30. Kf1 {[%clk
0:01:23]} 30... Bd4 {[%clk 0:00:59.5]} 31. a4 {[%clk 0:01:07.3]} 31... Rf2+
{[%clk 0:00:57.8]} 32. Ke1 {[%clk 0:01:07.9]} 32... Rxg2 {[%clk 0:00:58.1]} 33.
Ra8+ {[%clk 0:00:59.4]} 33... Kf7 {[%clk 0:00:57.1]} 34. a5 {[%clk 0:01:00.3]}
34... Rxh2 {[%clk 0:00:53.6]} 35. a6 {[%clk 0:01:00.7]} 35... Ra2 {[%clk
0:00:52.7]} 36. Rf8+ {[%clk 0:00:35.6]} 36... Kg6 {[%clk 0:00:51]} 37. Re8
{[%clk 0:00:33]} 37... h5 {[%clk 0:00:41.5]} 38. Bxe5 {[%clk 0:00:32.7]} 38...
Bxe5 {[%clk 0:00:40]} 39. Rxe5 {[%clk 0:00:33.6]} 39... h4 {[%clk 0:00:39.5]}
40. Kf1 {[%clk 0:00:28.4]} 40... h3 {[%clk 0:00:29.6]} 41. Kg1 {[%clk
0:00:28.5]} 41... Rg2+ {[%clk 0:00:28.3]} 42. Kh1 {[%clk 0:00:28.9]} 42... Ra2
{[%clk 0:00:27.8]} 43. d6 {[%clk 0:00:27]} 1-0

[Event "Late-Titled-Tuesday-Blitz-October-10-2023"]
[Site "Chess.com"]
[Date "2023.10.10"]
[Round "11"]
[White "Hirna2005"]
[Black "Cheer_Down"]
[Result "0-1"]
[WhiteElo "2297"]
[BlackElo "2459"]
[TimeControl "180+1"]
[EndTime "16:00:32 PDT"]
[Termination "Cheer_Down won by resignation"]

1. e4 {[%clk 0:03:00.9]} 1... c5 {[%clk 0:02:58.8]} 2. c3 {[%clk 0:03:00.5]}
2... Nf6 {[%clk 0:02:58.1]} 3. e5 {[%clk 0:03:00.6]} 3... Nd5 {[%clk 0:02:58.1]}
4. Nf3 {[%clk 0:03:01.2]} 4... Nc6 {[%clk 0:02:56.9]} 5. Bc4 {[%clk 0:03:00.9]}
5... Nb6 {[%clk 0:02:54.9]} 6. Bb3 {[%clk 0:03:01.1]} 6... d5 {[%clk 0:02:55.4]}
7. exd6 {[%clk 0:03:00.7]} 7... Qxd6 {[%clk 0:02:55.4]} 8. O-O {[%clk
0:03:01.1]} 8... Be6 {[%clk 0:02:53.3]} 9. Re1 {[%clk 0:03:00.4]} 9... Bxb3
{[%clk 0:02:52]} 10. axb3 {[%clk 0:03:00.7]} 10... e6 {[%clk 0:02:48.3]} 11. Qe2
{[%clk 0:02:59.6]} 11... Be7 {[%clk 0:02:46]} 12. Na3 {[%clk 0:02:59.6]} 12...
a6 {[%clk 0:02:43.5]} 13. Nc4 {[%clk 0:02:55.1]} 13... Nxc4 {[%clk 0:02:43.5]}
14. bxc4 {[%clk 0:02:55.4]} 14... O-O {[%clk 0:02:41.9]} 15. Ne5 {[%clk
0:02:49.7]} 15... Nxe5 {[%clk 0:02:40.8]} 16. Qxe5 {[%clk 0:02:49.5]} 16... Qxe5
{[%clk 0:02:39.6]} 17. Rxe5 {[%clk 0:02:49.5]} 17... Rad8 {[%clk 0:02:39.8]} 18.
Kf1 {[%clk 0:02:49]} 18... Rd7 {[%clk 0:02:32.8]} 19. Ke2 {[%clk 0:02:48.6]}
19... Rfd8 {[%clk 0:02:32.5]} 20. f4 {[%clk 0:02:36.1]} 20... Bd6 {[%clk
0:02:29.2]} 21. Re4 {[%clk 0:02:33.3]} 21... f5 {[%clk 0:02:24]} 22. Rxe6 {[%clk
0:02:32.1]} 22... Kf7 {[%clk 0:02:23.2]} 23. Re3 {[%clk 0:02:25.3]} 23... Bxf4
{[%clk 0:02:16.4]} 24. Rf3 {[%clk 0:02:25.6]} 24... Bxd2 {[%clk 0:02:16.5]} 25.
Rxf5+ {[%clk 0:02:23.6]} 25... Kg6 {[%clk 0:02:16.2]} 26. Rxc5 {[%clk
0:02:18.1]} 26... Re8+ {[%clk 0:02:12.2]} 27. Kf3 {[%clk 0:02:09.5]} 27... Rd3+
{[%clk 0:02:02.7]} 28. Kf2 {[%clk 0:02:03.7]} 28... Be1+ {[%clk 0:01:25.4]} 29.
Kf1 {[%clk 0:01:41.1]} 29... Rd1 {[%clk 0:01:18.7]} 30. g3 {[%clk 0:01:12]}
30... Bd2+ {[%clk 0:01:10.2]} 31. Kg2 {[%clk 0:01:12.1]} 31... Re2+ {[%clk
0:01:08.3]} 32. Kh3 {[%clk 0:01:11.4]} 32... Rxc1 {[%clk 0:01:07]} 33. Ra4
{[%clk 0:01:09.4]} 33... Rh1 {[%clk 0:01:04.9]} 34. Kg4 {[%clk 0:01:00]} 34...
Rhxh2 {[%clk 0:01:04.3]} 35. Rc7 {[%clk 0:00:57.6]} 35... Ref2 {[%clk
0:01:02.7]} 36. Rc5 {[%clk 0:00:48.6]} 36... h5+ {[%clk 0:01:01.8]} 37. Rxh5
{[%clk 0:00:48.8]} 37... Rxh5 {[%clk 0:01:01.9]} 38. c5 {[%clk 0:00:48.3]} 38...
Rxc5 {[%clk 0:00:56.5]} 39. Re4 {[%clk 0:00:46.3]} 39... b5 {[%clk 0:00:52]} 40.
Re6+ {[%clk 0:00:45.6]} 40... Rf6 {[%clk 0:00:52.1]} 41. Re2 {[%clk 0:00:44.3]}
41... Bc1 {[%clk 0:00:50.8]} 42. Rc2 {[%clk 0:00:42.4]} 42... Bh6 {[%clk
0:00:49.5]} 43. Re2 {[%clk 0:00:42.1]} 43... Rg5+ {[%clk 0:00:49.6]} 44. Kh3
{[%clk 0:00:42.4]} 44... Rf3 {[%clk 0:00:49.4]} 45. Re6+ {[%clk 0:00:41.4]}
45... Kf7 {[%clk 0:00:49.7]} 46. Rxa6 {[%clk 0:00:41.3]} 46... Rgxg3+ {[%clk
0:00:49.7]} 47. Kh2 {[%clk 0:00:39.1]} 47... Bf4 {[%clk 0:00:50]} 48. Ra7+
{[%clk 0:00:37.2]} 48... Kg8 {[%clk 0:00:49.8]} 49. Kh1 {[%clk 0:00:34.6]} 49...
Rf2 {[%clk 0:00:47.5]} 50. c4 {[%clk 0:00:27.7]} 50... Re3 {[%clk 0:00:44.9]}
51. Ra8+ {[%clk 0:00:24.7]} 51... Kh7 {[%clk 0:00:44.6]} 52. Ra1 {[%clk
0:00:24.6]} 52... Rh2+ {[%clk 0:00:39.1]} 53. Kg1 {[%clk 0:00:24.4]} 53... Rg3+
{[%clk 0:00:40]} 54. Kf1 {[%clk 0:00:22.8]} 54... Rh1+ {[%clk 0:00:40.9]} 0-1

[Event "Late-Titled-Tuesday-Blitz-October-10-2023"]
[Site "Chess.com"]
[Date "2023.10.10"]
[Round "11"]
[White "K_alena13"]
[Black "AleksandrAleksikov"]
[Result "1-0"]
[WhiteElo "2173"]
[BlackElo "2252"]
[TimeControl "180+1"]
[EndTime "16:00:33 PDT"]
[Termination "K_alena13 won on time"]

1. Nf3 {[%clk 0:03:00.9]} 1... c5 {[%clk 0:02:58.4]} 2. c4 {[%clk 0:03:00.8]}
2... Nc6 {[%clk 0:02:57.1]} 3. Nc3 {[%clk 0:03:01.4]} 3... g6 {[%clk 0:02:56.9]}
4. e3 {[%clk 0:03:01.6]} 4... Bg7 {[%clk 0:02:56.7]} 5. d4 {[%clk 0:03:02.2]}
5... cxd4 {[%clk 0:02:55.5]} 6. exd4 {[%clk 0:03:03.1]} 6... d6 {[%clk
0:02:53.1]} 7. Be2 {[%clk 0:03:03.1]} 7... Nh6 {[%clk 0:02:52.2]} 8. O-O {[%clk
0:03:02.8]} 8... Nf5 {[%clk 0:02:51.3]} 9. d5 {[%clk 0:02:53.6]} 9... Ncd4
{[%clk 0:02:44.9]} 10. Nxd4 {[%clk 0:02:12.1]} 10... Nxd4 {[%clk 0:02:44.1]} 11.
Re1 {[%clk 0:02:08]} 11... O-O {[%clk 0:02:31.6]} 12. Bf1 {[%clk 0:02:04.8]}
12... Re8 {[%clk 0:02:27.4]} 13. Bg5 {[%clk 0:01:59.2]} 13... h6 {[%clk
0:02:25]} 14. Bf4 {[%clk 0:01:48.9]} 14... Bf5 {[%clk 0:01:50.9]} 15. Rc1 {[%clk
0:01:46.8]} 15... Rc8 {[%clk 0:01:36.5]} 16. Be3 {[%clk 0:01:35.7]} 16... e5
{[%clk 0:01:33]} 17. dxe6 {[%clk 0:01:28.6]} 17... Rxe6 {[%clk 0:01:30.7]} 18.
Nd5 {[%clk 0:01:18]} 18... Nc6 {[%clk 0:01:23.4]} 19. Qd2 {[%clk 0:01:13.6]}
19... Kh7 {[%clk 0:01:16]} 20. b3 {[%clk 0:01:07.2]} 20... b6 {[%clk 0:01:08]}
21. Rcd1 {[%clk 0:01:01.4]} 21... Ne5 {[%clk 0:00:43.8]} 22. Nf4 {[%clk
0:00:41.9]} 22... Rf6 {[%clk 0:00:40.6]} 23. Bd4 {[%clk 0:00:40.8]} 23... Qe8
{[%clk 0:00:19.5]} 24. Nd5 {[%clk 0:00:26.1]} 24... Re6 {[%clk 0:00:17.7]} 25.
Ne3 {[%clk 0:00:19.9]} 25... Be4 {[%clk 0:00:13.6]} 26. Bxe5 {[%clk 0:00:17.1]}
26... dxe5 {[%clk 0:00:11]} 27. f3 {[%clk 0:00:17.3]} 27... Bc6 {[%clk
0:00:09.7]} 28. Bd3 {[%clk 0:00:14.5]} 28... e4 {[%clk 0:00:09.2]} 29. fxe4
{[%clk 0:00:13.7]} 29... Bxe4 {[%clk 0:00:08.8]} 30. Bxe4 {[%clk 0:00:13.9]}
30... Rxe4 {[%clk 0:00:08.7]} 31. Nd5 {[%clk 0:00:14.5]} 31... Rc6 {[%clk
0:00:03.2]} 32. Rxe4 {[%clk 0:00:13]} 32... Qxe4 {[%clk 0:00:01.8]} 33. Re1
{[%clk 0:00:13.7]} 1-0

[Event "Late-Titled-Tuesday-Blitz-October-10-2023"]
[Site "Chess.com"]
[Date "2023.10.10"]
[Round "11"]
[White "MalyDominator"]
[Black "temus_galaktionov"]
[Result "0-1"]
[WhiteElo "2504"]
[BlackElo "2876"]
[TimeControl "180+1"]
[EndTime "16:00:47 PDT"]
[Termination "temus_galaktionov won by resignation"]

1. e4 {[%clk 0:03:00.9]} 1... c6 {[%clk 0:03:00]} 2. d4 {[%clk 0:02:58.1]} 2...
g6 {[%clk 0:02:56.4]} 3. Nc3 {[%clk 0:02:52.8]} 3... Bg7 {[%clk 0:02:56]} 4. Nf3
{[%clk 0:02:49.7]} 4... d6 {[%clk 0:02:56.9]} 5. Bf4 {[%clk 0:02:46]} 5... Nd7
{[%clk 0:02:55.8]} 6. Qd2 {[%clk 0:02:45.9]} 6... e5 {[%clk 0:02:54.9]} 7. Bg5
{[%clk 0:02:41.1]} 7... Ngf6 {[%clk 0:02:54.8]} 8. O-O-O {[%clk 0:02:39.6]} 8...
h6 {[%clk 0:02:51.5]} 9. Be3 {[%clk 0:02:38.8]} 9... Ng4 {[%clk 0:02:50.5]} 10.
dxe5 {[%clk 0:02:37.4]} 10... Nxe3 {[%clk 0:02:50.5]} 11. Qxe3 {[%clk
0:02:37.3]} 11... dxe5 {[%clk 0:02:50.5]} 12. Bc4 {[%clk 0:02:34.4]} 12... Qe7
{[%clk 0:02:42]} 13. h4 {[%clk 0:02:31.4]} 13... Nf6 {[%clk 0:02:33.4]} 14. Rd2
{[%clk 0:02:17]} 14... O-O {[%clk 0:02:21.4]} 15. Bb3 {[%clk 0:02:14]} 15... Bg4
{[%clk 0:02:10.7]} 16. h5 {[%clk 0:02:10.7]} 16... Bxh5 {[%clk 0:01:58.2]} 17.
Nh4 {[%clk 0:02:08.2]} 17... Ng4 {[%clk 0:01:45.1]} 18. Qe1 {[%clk 0:02:03.8]}
18... Bf6 {[%clk 0:01:44.8]} 19. f3 {[%clk 0:02:01.4]} 19... Bg5 {[%clk
0:00:54.6]} 20. fxg4 {[%clk 0:02:00.5]} 20... Rad8 {[%clk 0:00:54.7]} 21. Nf3
{[%clk 0:01:30.5]} 21... Bxd2+ {[%clk 0:00:51.9]} 22. Nxd2 {[%clk 0:01:29.7]}
22... Bxg4 {[%clk 0:00:52.2]} 23. Nf3 {[%clk 0:01:25.1]} 23... h5 {[%clk
0:00:42.7]} 24. Qe3 {[%clk 0:01:23.4]} 24... Kg7 {[%clk 0:00:35.9]} 25. Ne2
{[%clk 0:01:16.4]} 25... a5 {[%clk 0:00:30.3]} 26. a3 {[%clk 0:01:12]} 26... b5
{[%clk 0:00:28.7]} 27. Ng3 {[%clk 0:01:05.1]} 27... a4 {[%clk 0:00:25.8]} 28.
Ba2 {[%clk 0:01:04.5]} 28... Rh8 {[%clk 0:00:21.2]} 29. Qc3 {[%clk 0:01:03.3]}
29... Rhe8 {[%clk 0:00:19.8]} 30. Qe3 {[%clk 0:00:48.3]} 30... Qf6 {[%clk
0:00:18.3]} 31. Rf1 {[%clk 0:00:45.8]} 31... Qf4 {[%clk 0:00:18.2]} 32. Qxf4
{[%clk 0:00:28]} 32... exf4 {[%clk 0:00:19.1]} 33. Ne2 {[%clk 0:00:24]} 33...
Rxe4 {[%clk 0:00:18.2]} 34. Nc3 {[%clk 0:00:24.4]} 34... Re7 {[%clk 0:00:17.2]}
35. Ng5 {[%clk 0:00:22.3]} 35... f6 {[%clk 0:00:17.5]} 36. Nge4 {[%clk
0:00:21.5]} 36... g5 {[%clk 0:00:17.8]} 37. Nc5 {[%clk 0:00:17.5]} 37... h4
{[%clk 0:00:15.3]} 38. N3e4 {[%clk 0:00:17.3]} 38... Rd4 {[%clk 0:00:15.1]} 39.
Nf2 {[%clk 0:00:15.9]} 39... Bf5 {[%clk 0:00:15.4]} 40. c3 {[%clk 0:00:14.9]}
40... Rd8 {[%clk 0:00:15.4]} 41. c4 {[%clk 0:00:12.3]} 41... Re2 {[%clk
0:00:14.6]} 42. cxb5 {[%clk 0:00:12.1]} 42... Rc2+ {[%clk 0:00:14.8]} 0-1

[Event "Late-Titled-Tuesday-Blitz-October-10-2023"]
[Site "Chess.com"]
[Date "2023.10.10"]
[Round "11"]
[White "subham777"]
[Black "Harald_Schmidt"]
[Result "1-0"]
[WhiteElo "2531"]
[BlackElo "2372"]
[TimeControl "180+1"]
[EndTime "16:01:06 PDT"]
[Termination "subham777 won on time"]

1. e4 {[%clk 0:03:00.9]} 1... b6 {[%clk 0:02:59.2]} 2. d4 {[%clk 0:03:00.2]}
2... Bb7 {[%clk 0:02:59.8]} 3. Bd3 {[%clk 0:02:59.9]} 3... e6 {[%clk 0:02:59.7]}
4. c4 {[%clk 0:03:00.1]} 4... Ne7 {[%clk 0:02:58.7]} 5. Nc3 {[%clk 0:02:59.9]}
5... g6 {[%clk 0:02:58.2]} 6. Nf3 {[%clk 0:02:55.2]} 6... Bg7 {[%clk 0:02:57.6]}
7. Be3 {[%clk 0:02:54.1]} 7... d6 {[%clk 0:02:54.7]} 8. Qd2 {[%clk 0:02:52.3]}
8... h6 {[%clk 0:02:53.5]} 9. O-O-O {[%clk 0:02:52.6]} 9... Nd7 {[%clk 0:02:53]}
10. h4 {[%clk 0:02:51.6]} 10... e5 {[%clk 0:02:48.7]} 11. Kb1 {[%clk 0:02:46.6]}
11... a6 {[%clk 0:02:43.9]} 12. h5 {[%clk 0:02:39.7]} 12... g5 {[%clk
0:02:43.1]} 13. d5 {[%clk 0:02:29.3]} 13... Nf6 {[%clk 0:02:12.3]} 14. Qc2
{[%clk 0:02:11.3]} 14... Bc8 {[%clk 0:02:04.6]} 15. Ng1 {[%clk 0:02:09]} 15...
Bg4 {[%clk 0:01:59.9]} 16. f3 {[%clk 0:02:07.3]} 16... Bxh5 {[%clk 0:01:58.7]}
17. Nge2 {[%clk 0:02:07.6]} 17... Bg6 {[%clk 0:01:51.9]} 18. g4 {[%clk
0:02:05.5]} 18... Bh7 {[%clk 0:01:42.5]} 19. Ng3 {[%clk 0:01:46.7]} 19... Qd7
{[%clk 0:01:40.4]} 20. Rh2 {[%clk 0:01:45.1]} 20... Bf8 {[%clk 0:01:35.5]} 21.
Rdh1 {[%clk 0:01:41.5]} 21... Bg7 {[%clk 0:01:33.4]} 22. a3 {[%clk 0:01:39.8]}
22... Bg6 {[%clk 0:01:32]} 23. Nd1 {[%clk 0:01:34.1]} 23... O-O-O {[%clk
0:01:25]} 24. c5 {[%clk 0:01:25.2]} 24... dxc5 {[%clk 0:01:21.4]} 25. Bxa6+
{[%clk 0:01:25.3]} 25... Kb8 {[%clk 0:01:20.7]} 26. Nf5 {[%clk 0:01:11.3]} 26...
Bxf5 {[%clk 0:01:17.8]} 27. gxf5 {[%clk 0:01:11.4]} 27... g4 {[%clk 0:01:02.7]}
28. Bxc5 {[%clk 0:01:04.8]} 28... gxf3 {[%clk 0:00:57]} 29. Nc3 {[%clk 0:01:05]}
29... Nxf5 {[%clk 0:00:31.5]} 30. Bb5 {[%clk 0:01:00.6]} 30... Qc8 {[%clk
0:00:24.9]} 31. Bc6 {[%clk 0:00:52.9]} 31... Qa6 {[%clk 0:00:24.3]} 32. exf5
{[%clk 0:00:45.4]} 32... bxc5 {[%clk 0:00:23.9]} 33. Rh4 {[%clk 0:00:40.2]}
33... e4 {[%clk 0:00:22.8]} 34. Nxe4 {[%clk 0:00:35.8]} 34... Nxd5 {[%clk
0:00:22.3]} 35. Bxd5 {[%clk 0:00:23.7]} 35... Rxd5 {[%clk 0:00:21.2]} 36. f6
{[%clk 0:00:21.8]} 36... Bf8 {[%clk 0:00:21]} 37. Nc3 {[%clk 0:00:21.6]} 37...
Rd4 {[%clk 0:00:19.4]} 38. Qb3+ {[%clk 0:00:13.1]} 38... Qb6 {[%clk 0:00:18.9]}
39. Qxf7 {[%clk 0:00:13.7]} 39... Bd6 {[%clk 0:00:15.2]} 40. R4h3 {[%clk
0:00:08.6]} 40... f2 {[%clk 0:00:14]} 41. Qg7 {[%clk 0:00:07.5]} 41... Rf8
{[%clk 0:00:10.5]} 42. Rf3 {[%clk 0:00:04.6]} 42... Rd2 {[%clk 0:00:10.1]} 43.
Nd1 {[%clk 0:00:05.3]} 1-0